[Event "Titled Tuesday Blitz September 21 2021"]
[White "Gracia Alvarez, Gerardo Antonio"]
[Black "Gorin, Leonid"]
[WhiteFideId "5109124"]
[BlackFideId "4131991"]
[WhiteElo "2148"]
[BlackElo "2363"]
[Result "0-1"]
[Round "06"]
[TimeControl "180+1"]
[Date "2021.09.21"]
[WhiteClock "0:00:02"]
[BlackClock "0:00:12"]

1. e4 {[%clk 0:03:00]}  e5 {[%clk 0:02:58]} 2. Nf3 {[%clk 0:03:01]}  Nc6 {[%clk 0:02:58]} 3. Bc4 {[%clk 0:03:01]}  Bc5 {[%clk 0:02:57]} 4. c3 {[%clk 0:02:59]}  Nf6 {[%clk 0:02:57]} 5. d4 {[%clk 0:02:58]}  exd4 {[%clk 0:02:57]} 6. b4 {[%clk 0:02:56]}  Bb6 {[%clk 0:02:48]} 7. e5 {[%clk 0:02:56]}  d5 {[%clk 0:02:44]} 8. exf6 {[%clk 0:02:55]}  dxc4 {[%clk 0:02:44]} 9. b5 {[%clk 0:02:38]}  Qxf6 {[%clk 0:02:18]} 10. bxc6 {[%clk 0:02:36]}  Qxc6 {[%clk 0:02:09]} 11. Nxd4 {[%clk 0:02:20]}  Qxg2 {[%clk 0:02:04]} 12. Qf3 {[%clk 0:02:17]}  Qxf3 {[%clk 0:02:01]} 13. Nxf3 {[%clk 0:02:16]}  Bf5 {[%clk 0:01:56]} 14. Nd4 {[%clk 0:01:54]}  Bd3 {[%clk 0:01:45]} 15. Be3 {[%clk 0:01:49]}  O-O-O {[%clk 0:01:44]} 16. Nd2 {[%clk 0:01:37]}  Rhe8 {[%clk 0:01:43]} 17. O-O-O {[%clk 0:01:37]}  Bc5 {[%clk 0:01:37]} 18. Kb2 {[%clk 0:01:35]}  a6 {[%clk 0:01:34]} 19. Rhe1 {[%clk 0:01:28]}  Bd6 {[%clk 0:01:32]} 20. h4 {[%clk 0:01:25]}  f6 {[%clk 0:01:27]} 21. Nf1 {[%clk 0:00:59]}  c5 {[%clk 0:01:21]} 22. Nc2 {[%clk 0:00:58]}  Kc7 {[%clk 0:01:18]} 23. Ng3 {[%clk 0:00:54]}  g6 {[%clk 0:01:15]} 24. Ne2 {[%clk 0:00:52]}  Re4 {[%clk 0:01:06]} 25. Nc1 {[%clk 0:00:45]}  Be7 {[%clk 0:00:53]} 26. Bf4+ {[%clk 0:00:38]}  Rxf4 {[%clk 0:00:52]} 27. Rxe7+ {[%clk 0:00:37]}  Kc6 {[%clk 0:00:49]} 28. Rd2 {[%clk 0:00:11]}  Rxh4 {[%clk 0:00:48]} 29. Ne3 {[%clk 0:00:11]}  b5 {[%clk 0:00:43]} 30. a4 {[%clk 0:00:11]}  Rd7 {[%clk 0:00:40]} 31. Re6+ {[%clk 0:00:09]}  Rd6 {[%clk 0:00:39]} 32. Re7 {[%clk 0:00:08]}  f5 {[%clk 0:00:36]} 33. axb5+ {[%clk 0:00:08]}  axb5 {[%clk 0:00:35]} 34. Ne2 {[%clk 0:00:07]}  f4 {[%clk 0:00:30]} 35. Ng2 {[%clk 0:00:06]}  Rh2 {[%clk 0:00:25]} 36. Ngxf4 {[%clk 0:00:06]}  Rxf2 {[%clk 0:00:23]} 37. Kc1 {[%clk 0:00:03]}  Rf3 {[%clk 0:00:20]} 38. Rxh7 {[%clk 0:00:02]}  b4 {[%clk 0:00:19]} 39. cxb4 {[%clk 0:00:02]}  cxb4 {[%clk 0:00:19]} 40. Nxd3 {[%clk 0:00:02]}  Rfxd3 {[%clk 0:00:18]} 41. Rxd3 {[%clk 0:00:02]}  Rxd3 {[%clk 0:00:18]} 42. Rh6 {[%clk 0:00:02]}  Rd6 {[%clk 0:00:15]} 43. Nf4 {[%clk 0:00:02]}  g5 {[%clk 0:00:14]} 44. Rxd6+ {[%clk 0:00:02]}  Kxd6 {[%clk 0:00:14]} 45. Ng2 {[%clk 0:00:02]}  Kd5 {[%clk 0:00:13]} 46. Kc2 {[%clk 0:00:03]}  Ke4 {[%clk 0:00:12]} 47. Ne1 {[%clk 0:00:03]}  g4 {[%clk 0:00:12]} 48. Ng2 {[%clk 0:00:03]}  g3 {[%clk 0:00:12]} 49. Nh4 {[%clk 0:00:03]}  b3+ {[%clk 0:00:12]} 50. Kc3 {[%clk 0:00:03]}  Ke3 {[%clk 0:00:12]} 51. Nf5+ {[%clk 0:00:03]}  Kf2 {[%clk 0:00:12]} 52. Nh4 {[%clk 0:00:02]} 0-1


[Site "https://www.chess.com"]

[Event "Titled Tuesday Blitz September 21 2021"]
[White "Grandelius, Nils"]
[Black "Petesch, Gabriel"]
[WhiteFideId "1710400"]
[BlackFideId "2032465"]
[WhiteElo "2651"]
[BlackElo "2374"]
[Result "1-0"]
[Round "06"]
[TimeControl "180+1"]
[Date "2021.09.21"]
[WhiteClock "0:01:52"]
[BlackClock "0:00:36"]

1. c4 {[%clk 0:03:00]}  e6 {[%clk 0:02:58]} 2. Nc3 {[%clk 0:02:58]}  d5 {[%clk 0:02:57]} 3. e3 {[%clk 0:02:59]}  Nf6 {[%clk 0:02:55]} 4. Nf3 {[%clk 0:02:59]}  Be7 {[%clk 0:02:53]} 5. b3 {[%clk 0:02:59]}  O-O {[%clk 0:02:52]} 6. Bb2 {[%clk 0:03:00]}  b6 {[%clk 0:02:48]} 7. cxd5 {[%clk 0:03:00]}  Nxd5 {[%clk 0:02:45]} 8. Qc2 {[%clk 0:02:53]}  c5 {[%clk 0:02:37]} 9. h4 {[%clk 0:02:51]}  Nb4 {[%clk 0:02:33]} 10. Qe4 {[%clk 0:02:45]}  N8c6 {[%clk 0:02:26]} 11. a3 {[%clk 0:02:41]}  Nd5 {[%clk 0:02:07]} 12. Bc4 {[%clk 0:02:32]}  Nxc3 {[%clk 0:01:39]} 13. Bxc3 {[%clk 0:02:33]}  Bb7 {[%clk 0:01:38]} 14. Ng5 {[%clk 0:02:29]}  g6 {[%clk 0:01:35]} 15. Nxe6 {[%clk 0:02:25]}  Nd4 {[%clk 0:01:26]} 16. Qxb7 {[%clk 0:02:15]}  Nxe6 {[%clk 0:01:20]} 17. Qe4 {[%clk 0:02:07]}  Qd6 {[%clk 0:01:04]} 18. h5 {[%clk 0:02:00]}  Ng5 {[%clk 0:01:01]} 19. hxg6 {[%clk 0:01:59]}  Bf6 {[%clk 0:00:54]} 20. gxf7+ {[%clk 0:01:52]}  Kh8 {[%clk 0:00:48]} 21. Qf5 {[%clk 0:01:52]}  Bxc3 {[%clk 0:00:45]} 22. dxc3 {[%clk 0:01:52]}  Qe7 {[%clk 0:00:36]} 23. Rh5 {[%clk 0:01:52]} 1-0


[Site "https://www.chess.com"]

[Event "Titled Tuesday Blitz September 21 2021"]
[White "Jobava, Baadur"]
[Black "Putnam, Liam"]
[WhiteFideId "13601520"]
[BlackFideId "30938279"]
[WhiteElo "2731"]
[BlackElo "2035"]
[Result "0-1"]
[Round "06"]
[TimeControl "180+1"]
[Date "2021.09.21"]
[WhiteClock "0:02:39"]
[BlackClock "0:01:20"]

1. b3 {[%clk 0:03:00]}  a5 {[%clk 0:02:49]} 2. Bb2 {[%clk 0:03:01]}  a4 {[%clk 0:02:49]} 3. e3 {[%clk 0:03:02]}  e6 {[%clk 0:02:48]} 4. f4 {[%clk 0:03:02]}  Nf6 {[%clk 0:02:47]} 5. Nf3 {[%clk 0:03:02]}  d5 {[%clk 0:02:47]} 6. g4 {[%clk 0:03:01]}  Nxg4 {[%clk 0:02:41]} 7. Rg1 {[%clk 0:03:01]}  Nxh2 {[%clk 0:02:37]} 8. Ng5 {[%clk 0:02:51]}  h6 {[%clk 0:02:29]} 9. Qh5 {[%clk 0:02:49]}  hxg5 {[%clk 0:02:27]} 10. Qxh8 {[%clk 0:02:50]}  Nf3+ {[%clk 0:02:27]} 11. Kf2 {[%clk 0:02:51]}  Nxg1 {[%clk 0:02:27]} 12. Bxg7 {[%clk 0:02:51]}  Nd7 {[%clk 0:02:13]} 13. Nc3 {[%clk 0:02:50]}  axb3 {[%clk 0:01:59]} 14. cxb3 {[%clk 0:02:51]}  gxf4 {[%clk 0:01:59]} 15. Bb5 {[%clk 0:02:50]}  Nh3+ {[%clk 0:01:57]} 16. Ke2 {[%clk 0:02:49]}  f3+ {[%clk 0:01:52]} 17. Kxf3 {[%clk 0:02:47]}  Ng5+ {[%clk 0:01:52]} 18. Kg4 {[%clk 0:02:47]}  c6 {[%clk 0:01:50]} 19. Bd3 {[%clk 0:02:42]}  f5+ {[%clk 0:01:21]} 20. Kh5 {[%clk 0:02:41]}  Nf7 {[%clk 0:01:21]} 21. Rg1 {[%clk 0:02:39]}  Nxh8 {[%clk 0:01:20]} 0-1


[Site "https://www.chess.com"]

[Event "Titled Tuesday Blitz September 21 2021"]
[White "Khusnutdinov, Rustam"]
[Black "Wagner, Dennis"]
[WhiteFideId "13701703"]
[BlackFideId "24650684"]
[WhiteElo "2571"]
[BlackElo "2355"]
[Result "0-1"]
[Round "06"]
[TimeControl "180+1"]
[Date "2021.09.21"]
[WhiteClock "0:00:24"]
[BlackClock "0:00:08"]

1. e4 {[%clk 0:03:00]}  e5 {[%clk 0:03:00]} 2. Nf3 {[%clk 0:03:00]}  Nc6 {[%clk 0:03:00]} 3. Bc4 {[%clk 0:02:58]}  Bc5 {[%clk 0:02:59]} 4. c3 {[%clk 0:02:57]}  Nf6 {[%clk 0:03:00]} 5. d4 {[%clk 0:02:57]}  exd4 {[%clk 0:03:00]} 6. e5 {[%clk 0:02:58]}  d5 {[%clk 0:03:01]} 7. Bb5 {[%clk 0:02:59]}  Ne4 {[%clk 0:03:01]} 8. cxd4 {[%clk 0:02:59]}  Bb6 {[%clk 0:03:01]} 9. Nc3 {[%clk 0:02:59]}  O-O {[%clk 0:03:01]} 10. Be3 {[%clk 0:02:59]}  Bg4 {[%clk 0:02:59]} 11. h3 {[%clk 0:03:00]}  Bh5 {[%clk 0:02:59]} 12. Qc2 {[%clk 0:02:58]}  Bg6 {[%clk 0:02:50]} 13. Qb3 {[%clk 0:02:52]}  Ne7 {[%clk 0:02:50]} 14. O-O {[%clk 0:02:50]}  c6 {[%clk 0:02:50]} 15. Bd3 {[%clk 0:02:48]}  Nf5 {[%clk 0:02:48]} 16. Na4 {[%clk 0:02:14]}  Nxe3 {[%clk 0:02:27]} 17. fxe3 {[%clk 0:02:14]}  Ng3 {[%clk 0:02:18]} 18. Rf2 {[%clk 0:02:09]}  Bxd3 {[%clk 0:02:18]} 19. Qxd3 {[%clk 0:02:09]}  Ne4 {[%clk 0:02:19]} 20. Rff1 {[%clk 0:02:03]}  f6 {[%clk 0:02:09]} 21. Nc3 {[%clk 0:01:56]}  Nxc3 {[%clk 0:01:58]} 22. bxc3 {[%clk 0:01:56]}  Bc7 {[%clk 0:01:45]} 23. e4 {[%clk 0:01:36]}  fxe5 {[%clk 0:01:00]} 24. dxe5 {[%clk 0:01:35]}  dxe4 {[%clk 0:00:41]} 25. Qxe4 {[%clk 0:01:36]}  Qd5 {[%clk 0:00:38]} 26. Qxd5+ {[%clk 0:01:35]}  cxd5 {[%clk 0:00:39]} 27. Rad1 {[%clk 0:01:35]}  Rad8 {[%clk 0:00:38]} 28. Rd3 {[%clk 0:01:32]}  Rfe8 {[%clk 0:00:38]} 29. Re1 {[%clk 0:01:29]}  h6 {[%clk 0:00:35]} 30. Kf2 {[%clk 0:01:28]}  Kf7 {[%clk 0:00:34]} 31. a4 {[%clk 0:01:18]}  Re6 {[%clk 0:00:34]} 32. Kf1 {[%clk 0:01:10]}  Ra6 {[%clk 0:00:32]} 33. Rd4 {[%clk 0:01:09]}  Bb6 {[%clk 0:00:25]} 34. Rf4+ {[%clk 0:01:09]}  Ke7 {[%clk 0:00:24]} 35. e6 {[%clk 0:01:05]}  Rf8 {[%clk 0:00:22]} 36. Rxf8 {[%clk 0:01:00]}  Kxf8 {[%clk 0:00:23]} 37. Rd1 {[%clk 0:00:43]}  Ke7 {[%clk 0:00:23]} 38. Rxd5 {[%clk 0:00:43]}  Kxe6 {[%clk 0:00:23]} 39. Re5+ {[%clk 0:00:43]}  Kd6 {[%clk 0:00:22]} 40. Re4 {[%clk 0:00:43]}  Kd5 {[%clk 0:00:20]} 41. Rg4 {[%clk 0:00:43]}  g5 {[%clk 0:00:20]} 42. h4 {[%clk 0:00:44]}  gxh4 {[%clk 0:00:20]} 43. Rxh4 {[%clk 0:00:45]}  Be3 {[%clk 0:00:20]} 44. Ke2 {[%clk 0:00:44]}  Re6 {[%clk 0:00:20]} 45. Kd3 {[%clk 0:00:44]}  Bc5 {[%clk 0:00:19]} 46. c4+ {[%clk 0:00:40]}  Kd6 {[%clk 0:00:18]} 47. Re4 {[%clk 0:00:41]}  Rxe4 {[%clk 0:00:16]} 48. Kxe4 {[%clk 0:00:41]}  Ke6 {[%clk 0:00:15]} 49. Nh4 {[%clk 0:00:42]}  h5 {[%clk 0:00:11]} 50. Nf5 {[%clk 0:00:41]}  Kf6 {[%clk 0:00:11]} 51. Ng3 {[%clk 0:00:34]}  Kg5 {[%clk 0:00:10]} 52. Ne2 {[%clk 0:00:35]}  Kg4 {[%clk 0:00:10]} 53. Kd5 {[%clk 0:00:34]}  b6 {[%clk 0:00:10]} 54. a5 {[%clk 0:00:33]}  Kf5 {[%clk 0:00:05]} 55. a6 {[%clk 0:00:33]}  Bf2 {[%clk 0:00:05]} 56. Nc3 {[%clk 0:00:32]}  Kg4 {[%clk 0:00:05]} 57. Ne4 {[%clk 0:00:32]}  Be3 {[%clk 0:00:05]} 58. Kc6 {[%clk 0:00:30]}  Kf4 {[%clk 0:00:04]} 59. Nc3 {[%clk 0:00:30]}  Kg3 {[%clk 0:00:04]} 60. Nb5 {[%clk 0:00:29]}  Kxg2 {[%clk 0:00:04]} 61. Nxa7 {[%clk 0:00:29]}  h4 {[%clk 0:00:04]} 62. Kb7 {[%clk 0:00:29]}  h3 {[%clk 0:00:05]} 63. Nc6 {[%clk 0:00:30]}  h2 {[%clk 0:00:05]} 64. a7 {[%clk 0:00:30]}  h1=Q {[%clk 0:00:06]} 65. a8=Q {[%clk 0:00:31]}  Qh7+ {[%clk 0:00:06]} 66. Ka6 {[%clk 0:00:31]}  Qd3 {[%clk 0:00:06]} 67. Qg8+ {[%clk 0:00:31]}  Kf1 {[%clk 0:00:06]} 68. Qd5 {[%clk 0:00:32]}  Qa3+ {[%clk 0:00:05]} 69. Kb7 {[%clk 0:00:32]}  Qc5 {[%clk 0:00:05]} 70. Qe4 {[%clk 0:00:31]}  Ke2 {[%clk 0:00:05]} 71. Ne5 {[%clk 0:00:30]}  Qd4 {[%clk 0:00:04]} 72. Qf3+ {[%clk 0:00:30]}  Kd2 {[%clk 0:00:05]} 73. Qf5 {[%clk 0:00:30]}  Kc3 {[%clk 0:00:05]} 74. Ka6 {[%clk 0:00:29]}  Qd2 {[%clk 0:00:04]} 75. Qf6 {[%clk 0:00:27]}  Kb3 {[%clk 0:00:05]} 76. Qc6 {[%clk 0:00:26]}  Qa5+ {[%clk 0:00:05]} 77. Kb7 {[%clk 0:00:26]}  Qxe5 {[%clk 0:00:06]} 78. Qf3 {[%clk 0:00:24]}  Qc5 {[%clk 0:00:06]} 79. Qe2 {[%clk 0:00:24]}  Kb4 {[%clk 0:00:06]} 80. Qd3 {[%clk 0:00:24]}  Qd4 {[%clk 0:00:06]} 81. Qe2 {[%clk 0:00:24]}  Kc5 {[%clk 0:00:07]} 82. Qf1 {[%clk 0:00:24]}  Qd7+ {[%clk 0:00:07]} 83. Ka6 {[%clk 0:00:24]}  Bd4 {[%clk 0:00:07]} 84. Qd3 {[%clk 0:00:23]}  Qa4+ {[%clk 0:00:07]} 85. Kb7 {[%clk 0:00:24]}  Qxc4 {[%clk 0:00:08]} 0-1


[Site "https://www.chess.com"]

[Event "Titled Tuesday Blitz September 21 2021"]
[White "Koridze, Lile"]
[Black "Janaszak, Dawid"]
[WhiteFideId "13612514"]
[BlackFideId "1119206"]
[WhiteElo "1978"]
[BlackElo "2283"]
[Result "1-0"]
[Round "06"]
[TimeControl "180+1"]
[Date "2021.09.21"]
[WhiteClock "0:00:42"]
[BlackClock "0:00:02"]

1. d4 {[%clk 0:03:00]}  Nf6 {[%clk 0:02:59]} 2. c4 {[%clk 0:03:00]}  c5 {[%clk 0:02:59]} 3. d5 {[%clk 0:03:00]}  b5 {[%clk 0:02:59]} 4. cxb5 {[%clk 0:03:00]}  a6 {[%clk 0:02:59]} 5. bxa6 {[%clk 0:03:00]}  Bxa6 {[%clk 0:03:00]} 6. Nc3 {[%clk 0:03:00]}  d6 {[%clk 0:03:00]} 7. e4 {[%clk 0:03:00]}  Bxf1 {[%clk 0:03:01]} 8. Kxf1 {[%clk 0:03:01]}  g6 {[%clk 0:03:02]} 9. g3 {[%clk 0:03:01]}  Bg7 {[%clk 0:03:02]} 10. Kg2 {[%clk 0:03:02]}  O-O {[%clk 0:03:03]} 11. Nf3 {[%clk 0:03:01]}  Qb6 {[%clk 0:02:59]} 12. Qe2 {[%clk 0:02:58]}  Na6 {[%clk 0:02:59]} 13. Nd2 {[%clk 0:02:57]}  Nc7 {[%clk 0:02:55]} 14. Nc4 {[%clk 0:02:57]}  Qa6 {[%clk 0:02:55]} 15. a4 {[%clk 0:02:57]}  Rfb8 {[%clk 0:02:52]} 16. Re1 {[%clk 0:02:52]}  Rb4 {[%clk 0:02:40]} 17. Na3 {[%clk 0:02:35]}  e6 {[%clk 0:02:27]} 18. Qd1 {[%clk 0:02:16]}  exd5 {[%clk 0:02:22]} 19. exd5 {[%clk 0:02:15]}  Rd4 {[%clk 0:02:15]} 20. Qf3 {[%clk 0:02:14]}  Nfxd5 {[%clk 0:01:51]} 21. Ncb5 {[%clk 0:01:55]}  Rf8 {[%clk 0:00:51]} 22. Nxd4 {[%clk 0:01:49]}  Bxd4 {[%clk 0:00:52]} 23. Bh6 {[%clk 0:01:48]}  Rb8 {[%clk 0:00:52]} 24. Nb5 {[%clk 0:01:38]}  Nxb5 {[%clk 0:00:35]} 25. Qxd5 {[%clk 0:01:20]}  Nc7 {[%clk 0:00:34]} 26. Qe4 {[%clk 0:01:05]}  d5 {[%clk 0:00:29]} 27. Qe7 {[%clk 0:01:03]}  Ne6 {[%clk 0:00:20]} 28. Rab1 {[%clk 0:00:58]}  Qc6 {[%clk 0:00:14]} 29. a5 {[%clk 0:00:56]}  Re8 {[%clk 0:00:14]} 30. Qh4 {[%clk 0:00:56]}  Bh8 {[%clk 0:00:09]} 31. b3 {[%clk 0:00:51]}  d4+ {[%clk 0:00:09]} 32. Kg1 {[%clk 0:00:50]}  d3 {[%clk 0:00:09]} 33. Rbd1 {[%clk 0:00:49]}  Ra8 {[%clk 0:00:07]} 34. Rxd3 {[%clk 0:00:48]}  Nd4 {[%clk 0:00:07]} 35. Qf4 {[%clk 0:00:45]}  Qd5 {[%clk 0:00:04]} 36. Rde3 {[%clk 0:00:43]}  Qd7 {[%clk 0:00:03]} 37. Re7 {[%clk 0:00:42]}  Qc6 {[%clk 0:00:02]} 38. Qxf7# {[%clk 0:00:42]} 1-0


[Site "https://www.chess.com"]

[Event "Titled Tuesday Blitz September 21 2021"]
[White "Kozak, Adam"]
[Black "Sargsyan, Anna M."]
[WhiteFideId "753246"]
[BlackFideId "13308130"]
[WhiteElo "2448"]
[BlackElo "2263"]
[Result "1-0"]
[Round "06"]
[TimeControl "180+1"]
[Date "2021.09.21"]
[WhiteClock "0:00:51"]
[BlackClock "0:00:35"]

1. e4 {[%clk 0:03:00]}  c6 {[%clk 0:02:56]} 2. Nc3 {[%clk 0:02:54]}  d5 {[%clk 0:02:57]} 3. Nf3 {[%clk 0:02:54]}  Bg4 {[%clk 0:02:56]} 4. h3 {[%clk 0:02:55]}  Bxf3 {[%clk 0:02:56]} 5. Qxf3 {[%clk 0:02:55]}  Nf6 {[%clk 0:02:56]} 6. d3 {[%clk 0:02:56]}  e6 {[%clk 0:02:55]} 7. g3 {[%clk 0:02:56]}  Nbd7 {[%clk 0:02:56]} 8. Bg2 {[%clk 0:02:56]}  Bc5 {[%clk 0:02:56]} 9. O-O {[%clk 0:02:57]}  O-O {[%clk 0:02:57]} 10. a3 {[%clk 0:02:55]}  Re8 {[%clk 0:02:57]} 11. Bd2 {[%clk 0:02:54]}  b5 {[%clk 0:02:55]} 12. Rad1 {[%clk 0:02:54]}  a5 {[%clk 0:02:54]} 13. Qe2 {[%clk 0:02:48]}  b4 {[%clk 0:02:53]} 14. Na4 {[%clk 0:02:47]}  Bd4 {[%clk 0:02:50]} 15. axb4 {[%clk 0:02:45]}  axb4 {[%clk 0:02:50]} 16. b3 {[%clk 0:02:45]}  c5 {[%clk 0:02:38]} 17. Kh2 {[%clk 0:02:42]}  dxe4 {[%clk 0:02:23]} 18. dxe4 {[%clk 0:02:39]}  e5 {[%clk 0:02:24]} 19. f4 {[%clk 0:01:55]}  Rxa4 {[%clk 0:02:07]} 20. bxa4 {[%clk 0:01:54]}  Qa5 {[%clk 0:02:08]} 21. Qb5 {[%clk 0:01:50]}  Qa7 {[%clk 0:02:02]} 22. fxe5 {[%clk 0:01:49]}  Bxe5 {[%clk 0:02:02]} 23. Bf4 {[%clk 0:01:48]}  Rb8 {[%clk 0:01:58]} 24. Qc6 {[%clk 0:01:46]}  h6 {[%clk 0:01:42]} 25. a5 {[%clk 0:01:35]}  Ra8 {[%clk 0:01:27]} 26. Bxe5 {[%clk 0:01:23]}  Nxe5 {[%clk 0:01:25]} 27. Qd6 {[%clk 0:01:20]}  Nc4 {[%clk 0:01:22]} 28. Qf4 {[%clk 0:01:16]}  Re8 {[%clk 0:01:19]} 29. e5 {[%clk 0:01:10]}  Nxe5 {[%clk 0:01:17]} 30. Rde1 {[%clk 0:01:10]}  Ng6 {[%clk 0:01:12]} 31. Rxe8+ {[%clk 0:01:04]}  Nxe8 {[%clk 0:01:13]} 32. Qc4 {[%clk 0:01:03]}  Nd6 {[%clk 0:01:00]} 33. Qd5 {[%clk 0:01:00]}  Nb5 {[%clk 0:00:47]} 34. a6 {[%clk 0:00:58]}  Qxa6 {[%clk 0:00:39]} 35. Qxf7+ {[%clk 0:00:58]}  Kh7 {[%clk 0:00:39]} 36. Bd5 {[%clk 0:00:58]}  h5 {[%clk 0:00:39]} 37. Qf5 {[%clk 0:00:51]}  Kh6 {[%clk 0:00:35]} 38. Bf3 {[%clk 0:00:51]} 1-0


[Site "https://www.chess.com"]

[Event "Titled Tuesday Blitz September 21 2021"]
[White "Krivonosov, Oleg"]
[Black "Tasev, Dejan"]
[WhiteFideId "11600349"]
[BlackFideId "936618"]
[WhiteElo "2469"]
[BlackElo "2253"]
[Result "1/2-1/2"]
[Round "06"]
[TimeControl "180+1"]
[Date "2021.09.21"]
[WhiteClock "0:02:12"]
[BlackClock "0:02:25"]

1. Nf3 {[%clk 0:03:00]}  Nf6 {[%clk 0:02:58]} 2. c4 {[%clk 0:03:00]}  g6 {[%clk 0:02:58]} 3. Nc3 {[%clk 0:02:59]}  Bg7 {[%clk 0:02:59]} 4. e4 {[%clk 0:02:59]}  d6 {[%clk 0:02:59]} 5. d4 {[%clk 0:02:59]}  O-O {[%clk 0:02:59]} 6. Be2 {[%clk 0:02:59]}  e5 {[%clk 0:03:00]} 7. dxe5 {[%clk 0:02:58]}  dxe5 {[%clk 0:03:00]} 8. Qxd8 {[%clk 0:02:58]}  Rxd8 {[%clk 0:03:00]} 9. Bg5 {[%clk 0:02:58]}  Re8 {[%clk 0:03:00]} 10. Nd5 {[%clk 0:02:58]}  Nxd5 {[%clk 0:02:58]} 11. cxd5 {[%clk 0:02:58]}  c6 {[%clk 0:02:59]} 12. Bc4 {[%clk 0:02:57]}  cxd5 {[%clk 0:03:00]} 13. Bxd5 {[%clk 0:02:57]}  Nc6 {[%clk 0:03:00]} 14. O-O-O {[%clk 0:02:55]}  Be6 {[%clk 0:03:00]} 15. Bxe6 {[%clk 0:02:54]}  Rxe6 {[%clk 0:02:58]} 16. Rd7 {[%clk 0:02:53]}  Rc8 {[%clk 0:02:54]} 17. Kb1 {[%clk 0:02:52]}  f6 {[%clk 0:02:48]} 18. Be3 {[%clk 0:02:51]}  b6 {[%clk 0:02:43]} 19. Rhd1 {[%clk 0:02:44]}  Bf8 {[%clk 0:02:40]} 20. a3 {[%clk 0:02:42]}  Re7 {[%clk 0:02:30]} 21. Rxe7 {[%clk 0:02:35]}  Bxe7 {[%clk 0:02:31]} 22. Rd7 {[%clk 0:02:27]}  Kf7 {[%clk 0:02:25]} 23. b4 {[%clk 0:02:21]}  Ke6 {[%clk 0:02:25]} 24. Rd3 {[%clk 0:02:12]} 1/2-1/2


[Site "https://www.chess.com"]

[Event "Titled Tuesday Blitz September 21 2021"]
[White "Kumala, Aleksander"]
[Black "Ismayil, Malak"]
[WhiteFideId "1141880"]
[BlackFideId "13412604"]
[WhiteElo "2269"]
[BlackElo "1879"]
[Result "1-0"]
[Round "06"]
[TimeControl "180+1"]
[Date "2021.09.21"]
[WhiteClock "0:01:09"]
[BlackClock "0:00:03"]

1. d4 {[%clk 0:03:00]}  Nf6 {[%clk 0:02:59]} 2. Bg5 {[%clk 0:03:00]}  e6 {[%clk 0:02:59]} 3. Nd2 {[%clk 0:03:00]}  h6 {[%clk 0:02:58]} 4. Bh4 {[%clk 0:02:59]}  d5 {[%clk 0:02:54]} 5. e3 {[%clk 0:02:59]}  Be7 {[%clk 0:02:52]} 6. Bd3 {[%clk 0:02:59]}  c5 {[%clk 0:02:51]} 7. c3 {[%clk 0:02:59]}  Nc6 {[%clk 0:02:48]} 8. f4 {[%clk 0:02:58]}  b6 {[%clk 0:02:42]} 9. Ngf3 {[%clk 0:02:57]}  Bb7 {[%clk 0:02:42]} 10. Ne5 {[%clk 0:02:56]}  Qc7 {[%clk 0:02:37]} 11. O-O {[%clk 0:02:54]}  Rf8 {[%clk 0:01:58]} 12. a4 {[%clk 0:02:51]}  O-O-O {[%clk 0:01:37]} 13. Nxc6 {[%clk 0:02:49]}  Bxc6 {[%clk 0:01:38]} 14. a5 {[%clk 0:02:49]}  b5 {[%clk 0:01:37]} 15. a6 {[%clk 0:02:35]}  c4 {[%clk 0:01:31]} 16. Bc2 {[%clk 0:02:33]}  Rh8 {[%clk 0:01:16]} 17. Nf3 {[%clk 0:02:31]}  Rdf8 {[%clk 0:00:45]} 18. Ne5 {[%clk 0:02:30]}  Bd6 {[%clk 0:00:41]} 19. Bg3 {[%clk 0:02:24]}  Nd7 {[%clk 0:00:39]} 20. Nxc6 {[%clk 0:02:15]}  Qxc6 {[%clk 0:00:39]} 21. b3 {[%clk 0:02:16]}  Nb6 {[%clk 0:00:34]} 22. Qf3 {[%clk 0:02:08]}  f5 {[%clk 0:00:30]} 23. Rfb1 {[%clk 0:02:03]}  g5 {[%clk 0:00:27]} 24. Qe2 {[%clk 0:01:58]}  g4 {[%clk 0:00:25]} 25. bxc4 {[%clk 0:01:56]}  Nxc4 {[%clk 0:00:10]} 26. Bd3 {[%clk 0:01:55]}  Kd7 {[%clk 0:00:07]} 27. Bxc4 {[%clk 0:01:47]}  dxc4 {[%clk 0:00:08]} 28. e4 {[%clk 0:01:47]}  fxe4 {[%clk 0:00:07]} 29. Qxg4 {[%clk 0:01:47]}  Rhg8 {[%clk 0:00:06]} 30. Qh5 {[%clk 0:01:46]}  Bxf4 {[%clk 0:00:05]} 31. Rxb5 {[%clk 0:01:40]}  Bxg3 {[%clk 0:00:04]} 32. hxg3 {[%clk 0:01:39]}  Rb8 {[%clk 0:00:03]} 33. Rab1 {[%clk 0:01:36]}  Rxb5 {[%clk 0:00:03]} 34. Rxb5 {[%clk 0:01:37]}  Qxa6 {[%clk 0:00:03]} 35. Qf7+ {[%clk 0:01:34]}  Kd6 {[%clk 0:00:03]} 36. Rb7 {[%clk 0:01:12]}  Rxg3 {[%clk 0:00:03]} 37. Qd7# {[%clk 0:01:09]} 1-0


[Site "https://www.chess.com"]